[Event "Haarlemse Meesters-IM 2018"]
[Site "Haarlem"]
[Date "2018.10.24"]
[Round "5"]
[White "Riemersma, Li"]
[Black "Lenaerts, Lennert"]
[Result "1/2-1/2"]
[ECO "D10"]
[WhiteElo "2460"]
[BlackElo "2362"]
[Annotator "RC"]
[PlyCount "67"]
[EventDate "2018.10.17"]
[EventType "tourn"]
[EventCountry "NED"]
[SourceTitle "playchess.com"]
[Source "ChessBase"]
[SourceQuality "1"]
[TimeControl "40/5400+30:1800+30"]

1. d4 {[%emt 0:00:00]} d5 {[%emt 0:00:00]} 2. c4 {[%emt 0:00:00]} c6 {[%emt 0:00:00]} 3. Nc3 {[%emt 0:00:02]} dxc4 {[%emt 0:00:00]} 4. e3 {[%emt 0:00:15]} b5 {[%emt 0:00:00]} 5. a4 {[%emt 0:00:18]} b4 {[%emt 0:00:00]} 6. Ne4 {[%emt 0:00:09]} Qd5 {[%emt 0:00:27]} 7. Nd2 {[%emt 0:00:08]} Ba6 {[%emt 0:00:53]} 8. Qc2 {[%emt 0:00:48]} c3 {[%emt 0:03:04]} 9. bxc3 {[%emt 0:02:55]} bxc3 {[%emt 0:00:02]} 10. Qxc3 {[%emt 0:00:50]} Bxf1 {[%emt 0:00:02]} 11. Kxf1 {[%emt 0:02:37]} Nf6 {[%emt 0:01:51]} 12. Ba3 {[%emt 0:09:41]} Nbd7 {[%emt 0:00:06]} 13. Ngf3 {[%emt 0:00:22]} Rc8 {[%emt 0:03:23]} 14. Rc1 {[%emt 0:13:03]} g5 {[%emt 0:08:19]} 15. h3 {[%emt 0:03:02]} h5 {[%emt 0:06:08]} 16. Qc4 {[%emt 0:19:45]} Bh6 {[%emt 0:04:31]} 17. Qxd5 {[%emt 0:02:40]} Nxd5 {[%emt 0:00:01]} 18. g4 {[%emt 0:05:29]} f6 {[%emt 0:03:18]} 19. Ke2 {[%emt 0:02:30]} Bf8 {[%emt 0:00:39]} 20. Rhg1 {[%emt 0:10:43]} hxg4 {[%emt 0:00:55]} 21. hxg4 {[%emt 0:00:02]} e6 {[%emt 0:00:06]} 22. Bxf8 {[%emt 0:00:49]} Kxf8 {[%emt 0:00:02]} 23. Rc2 {[%emt 0:01:18]} Ke7 {[%emt 0:00:54]} 24. Rgc1 {[%emt 0:02:46]} Nb4 {[%emt 0:00:04]} 25. Rc4 {[%emt 0:01:32]} Rb8 {[%emt 0:01:17]} 26. a5 {[%emt 0:02:41]} Rb5 {[%emt 0:00:50]} 27. e4 {[%emt 0:06:28]} Rhb8 {[%emt 0:15:11]} 28. Ra1 {[%emt 0:04:02]} c5 {[%emt 0:17:13]} 29. dxc5 {[%emt 0:02:29]} Rxc5 {[%emt 0:00:02]} 30. Rb1 {[%emt 0:04:00]} Rxc4 {[%emt 0:01:21]} 31. Nxc4 {[%emt 0:00:02]} Nc6 {[%emt 0:01:45]} 32. Rxb8 {[%emt 0:00:50]} Ndxb8 {[%emt 0:00:05]} 33. e5 {[%emt 0:00:19]} Nd7 {[%emt 0:00:36]} 34. exf6+ {[%emt 0:03:07]} 1/2-1/2

[Event "Haarlemse Meesters-IM 2018"]
[Site "Haarlem"]
[Date "2018.10.24"]
[Round "5"]
[White "Bosboom, Manuel"]
[Black "Basman, Michael J"]
[Result "1-0"]
[ECO "A10"]
[WhiteElo "2404"]
[BlackElo "2313"]
[Annotator "ChessBase"]
[PlyCount "47"]
[EventDate "2018.10.17"]
[EventType "tourn"]
[EventCountry "NED"]
[SourceTitle "playchess.com"]
[Source "ChessBase"]
[SourceQuality "1"]
[TimeControl "40/5400+30:1800+30"]

1. c4 {[%emt 0:00:18]} g5 {[%emt 0:00:00]} 2. h4 {[%emt 0:03:42]} g4 {[%emt 0:00:10]} 3. g3 {[%emt 0:00:52]} Bg7 {[%emt 0:03:38]} 4. Bg2 {[%emt 0:00:19]} c5 {[%emt 0:04:51]} 5. e3 {[%emt 0:01:34]} d6 {[%emt 0:01:10]} 6. Ne2 {[%emt 0:00:59]} Nc6 {[%emt 0:00:37]} 7. d4 {[%emt 0:00:47]} Bd7 {[%emt 0:02:26]} 8. Nbc3 {[%emt 0:00:36]} Nf6 {[%emt 0:10:42]} 9. O-O {[%emt 0:09:31]} O-O {[%emt 0:05:07]} 10. Nd5 {[%emt 0:07:09]} Nh5 {[%emt 0:07:30]} 11. Re1 {[%emt 0:08:36]} Rc8 {[%emt 0:15:35]} 12. b3 {[%emt 0:06:59]} e6 {[%emt 0:05:34]} 13. Nef4 {[%emt 0:10:35]} Nxf4 {[%emt 0:06:38]} 14. Nxf4 {[%emt 0:00:53]} cxd4 {[%emt 0:03:16]} 15. exd4 {[%emt 0:04:31]} Bxd4 {[%emt 0:04:53]} 16. Bxc6 {[%emt 0:04:04]} Bxa1 {[%emt 0:00:06]} 17. Bxb7 {[%emt 0:01:03]} Rb8 {[%emt 0:05:53]} 18. Nh5 {[%emt 0:03:13]} Qa5 {[%emt 0:02:57]} 19. Bg5 {[%emt 0:03:30]} Bc3 {[%emt 0:02:50]} 20. b4 {[%emt 0:05:37]} Qxb4 {[%emt 0:07:24]} 21. Nf6+ {[%emt 0:00:27]} Kh8 {[%emt 0:01:21]} 22. Qd3 {[%emt 0:10:56]} Bxf6 {[%emt 0:03:27]} 23. Bxf6+ {[%emt 0:00:04]} Kg8 {[%emt 0:00:04]} 24. Qe3 {[%emt 0:00:18]} 1-0

[Event "Haarlemse Meesters-IM 2018"]
[Site "Haarlem"]
[Date "2018.10.24"]
[Round "5"]
[White "Vedder, Richard"]
[Black "Van Kerkhof, David"]
[Result "1/2-1/2"]
[ECO "A57"]
[WhiteElo "2288"]
[BlackElo "2371"]
[Annotator "NA"]
[PlyCount "123"]
[EventDate "2018.10.17"]
[EventType "tourn"]
[EventCountry "NED"]
[SourceTitle "playchess.com"]
[Source "ChessBase"]
[SourceQuality "1"]
[TimeControl "40/5400+30:1800+30"]

1. d4 {[%emt 0:00:00]} Nf6 {[%emt 0:00:00]} 2. c4 {[%emt 0:00:00]} c5 {[%emt 0:00:00]} 3. d5 {[%emt 0:00:00]} b5 {[%emt 0:00:05]} 4. cxb5 {[%emt 0:00:00]} a6 {[%emt 0:00:04]} 5. bxa6 {[%emt 0:00:00]} g6 {[%emt 0:00:05]} 6. Nc3 {[%emt 0:00:03]} Bg7 {[%emt 0:00:04]} 7. Nf3 {[%emt 0:01:10]} O-O {[%emt 0:00:19]} 8. e4 {[%emt 0:01:18]} Qa5 {[%emt 0:00:21]} 9. Nd2 {[%emt 0:00:23]} Bxa6 {[%emt 0:00:33]} 10. Be2 {[%emt 0:00:57]} d6 {[%emt 0:00:28]} 11. O-O {[%emt 0:01:25]} Nfd7 {[%emt 0:02:25]} 12. Bxa6 {[%emt 0:07:25]} Nxa6 {[%emt 0:06:50]} 13. Nc4 {[%emt 0:09:06] A57: Benko/Volga Gambit} Qb4 {[%emt 0:05:59]} 14. Qe2 {[%emt 0:03:35]} Ne5 {[%emt 0:02:31] LiveBook: 3 Games} 15. Nxe5 {[%emt 0:00:18]} Bxe5 {[%emt 0:00:02]} 16. Nd1 {[%emt 0:02:43] [#]} f5 $146 {[%emt 0:09:44]} ({Predecessor:} 16... Nc7 17. Bd2 Qb5 18. Qf3 Bxh2+ 19. Kxh2 Qxf1 20. Rc1 Qb5 {0-1 (31) Lorscheid,G (2258)-Meskovs,N (2518) Cappelle-la-Grande 2016}) 17. exf5 $1 {[%emt 0:04:27]} Rxf5 {[%emt 0:00:16]} 18. Ne3 {[%emt 0:07:13]} Rh5 {[%emt 0:05:13]} 19. h3 {[%emt 0:04:42]} Nc7 {[%emt 0:06:00]} 20. Rd1 {[%emt 0:10:09]} Ra4 {[%emt 0:16:22]} 21. Qg4 {[%emt 0:10:53]} Qxg4 {[%emt 0:07:35]} 22. hxg4 {[%emt 0:00:16]} Rg5 {[%emt 0:00:20]} 23. Nf5 {[%emt 0:00:17]} Rxf5 {[%emt 0:02:35]} 24. gxf5 {[%emt 0:00:08]} gxf5 {[%emt 0:00:04]} 25. Rd3 {[%emt 0:10:03]} c4 {[%emt 0:04:49]} 26. Rf3 {[%emt 0:00:05]} Nxd5 {[%emt 0:05:47]} 27. Rxf5 {[%emt 0:00:14]} Kg7 {[%emt 0:00:29]} 28. Rxe5 {[%emt 0:02:34]} dxe5 {[%emt 0:00:23]} 29. Bd2 {[%emt 0:00:04]} Kf6 {[%emt 0:04:59]} 30. a3 {[%emt 0:01:48]} Kf5 {[%emt 0:03:58]} 31. Rc1 {[%emt 0:04:13]} e4 {[%emt 0:03:31]} 32. Bb4 {[%emt 0:01:56]} Nf4 {[%emt 0:05:16]} 33. Rxc4 {[%emt 0:00:56]} Nd3 {[%emt 0:00:02]} 34. g4+ {[%emt 0:05:51]} Kxg4 {[%emt 0:01:58]} 35. b3 {[%emt 0:00:01]} Ra6 {[%emt 0:01:51]} 36. Rxe4+ {[%emt 0:01:17]} Kf5 {[%emt 0:00:02]} 37. Rxe7 {[%emt 0:00:20]} Nxb4 {[%emt 0:01:39]} 38. axb4 {[%emt 0:00:02]} h6 {[%emt 0:00:32]} 39. Rc7 {[%emt 0:00:31]} Ke4 {[%emt 0:00:58]} 40. Kg2 {[%emt 0:03:59]} Rg6+ {[%emt 0:03:24]} 41. Kf1 {[%emt 0:30:18]} Rb6 {[%emt 0:31:08] [#]} 42. Rc4+ $1 {[%emt 0:00:40]} Kf3 {[%emt 0:00:41]} 43. Rc3+ {[%emt 0:01:39]} Kf4 {[%emt 0:00:00]} 44. Ke2 {[%emt 0:00:00]} Rxb4 $11 {[%emt 0:00:00]} 45. Rh3 {[%emt 0:00:00]} Kg4 {[%emt 0:00:00]} 46. Rg3+ {[%emt 0:00:00]} Kf4 {[%emt 0:00:00]} 47. Kd2 {[%emt 0:00:00]} h5 {[%emt 0:00:00]} 48. Kc3 {[%emt 0:00:00]} Rb8 {[%emt 0:00:00]} 49. b4 {[%emt 0:00:00]} h4 {[%emt 0:00:00]} 50. Rd3 {[%emt 0:00:00]} Rh8 {[%emt 0:00:00]} 51. Rh3 {[%emt 0:00:00]} Kg4 {[%emt 0:00:00]} 52. Rh1 {[%emt 0:00:00]} h3 {[%emt 0:00:00]} 53. Kc4 {[%emt 0:00:00]} h2 {[%emt 0:00:00]} 54. Kc5 {[%emt 0:00:00]} Kf3 {[%emt 0:00:00]} 55. b5 {[%emt 0:00:00]} Kxf2 {[%emt 0:00:00]} 56. b6 {[%emt 0:00:00]} Kg2 {[%emt 0:00:00]} 57. Rxh2+ {[%emt 0:00:00]} Kxh2 {[%emt 0:00:00]} 58. b7 {[%emt 0:00:00]} Kg3 {[%emt 0:00:00]} 59. Kc6 {[%emt 0:00:00]} Kf4 {[%emt 0:00:00]} 60. Kc7 {[%emt 0:00:00]} Ke5 {[%emt 0:00:00]} 61. b8=Q {[%emt 0:00:00]} Rxb8 {[%emt 0:00:00]} 62. Kxb8 {[%emt 0:00:00]} 1/2-1/2

[Event "Haarlemse Meesters-IM 2018"]
[Site "Haarlem"]
[Date "2018.10.24"]
[Round "5"]
[White "Van Baar, Esper"]
[Black "Gijswijt, Bart"]
[Result "0-1"]
[ECO "B11"]
[WhiteElo "2223"]
[BlackElo "2321"]
[Annotator "NA"]
[PlyCount "84"]
[EventDate "2018.10.17"]
[EventType "tourn"]
[EventCountry "NED"]
[SourceTitle "playchess.com"]
[Source "ChessBase"]
[SourceQuality "1"]
[TimeControl "40/5400+30:1800+30"]

1. e4 {[%emt 0:00:00]} c6 {[%emt 0:00:00]} 2. Nc3 {[%emt 0:00:38]} d5 {[%emt 0:00:00]} 3. Nf3 {[%emt 0:00:15]} Bg4 {[%emt 0:01:06]} 4. h3 {[%emt 0:01:35]} Bxf3 {[%emt 0:00:41]} 5. Qxf3 {[%emt 0:00:05]} e6 {[%emt 0:01:04]} 6. d3 {[%emt 0:00:43]} Nf6 {[%emt 0:10:48]} 7. Bd2 {[%emt 0:03:01]} Nbd7 {[%emt 0:12:59]} 8. g4 {[%emt 0:01:07]} d4 {[%emt 0:08:00] B11: Caro-Kann: Two Knights Variation} 9. Ne2 {[%emt 0:02:37]} Qb6 {[%emt 0:00:38]} 10. O-O-O {[%emt 0:01:33] LiveBook: 4 Games} Rd8 $146 {[%emt 0:05:44]} (10... g6 $14) ({Predecessor:} 10... e5 11. g5 Ng8 12. h4 Bb4 13. Bh3 Nf8 14. Qf5 Bxd2+ 15. Rxd2 Qc5 16. f4 {1-0 (50) Vovk,Y (2546)-Fridman,D (2650) ICC INT 2009}) 11. g5 {[%emt 0:02:22]} Ng8 {[%emt 0:00:17]} 12. h4 {[%emt 0:04:05]} Bb4 {[%emt 0:08:20]} 13. Bxb4 {[%emt 0:10:05]} Qxb4 {[%emt 0:00:03]} 14. Kb1 {[%emt 0:05:58]} Ne7 {[%emt 0:04:39]} 15. Bh3 {[%emt 0:00:36]} Nc5 {[%emt 0:02:09]} 16. Ka1 {[%emt 0:05:11]} Na4 {[%emt 0:04:40]} 17. Rb1 {[%emt 0:03:00]} c5 {[%emt 0:02:33]} 18. h5 {[%emt 0:07:59]} Rd6 {[%emt 0:01:34]} 19. Qf4 {[%emt 0:13:49]} c4 {[%emt 0:08:59]} 20. dxc4 {[%emt 0:02:44]} O-O {[%emt 0:01:52]} 21. a3 {[%emt 0:08:22]} Ra6 {[%emt 0:01:38]} 22. Nc1 {[%emt 0:16:34]} Nc3 {[%emt 0:06:07]} 23. Na2 {[%emt 0:00:02]} Nxa2 {[%emt 0:02:15]} 24. Kxa2 {[%emt 0:00:01]} Qxc4+ {[%emt 0:00:12]} 25. Ka1 {[%emt 0:00:03]} Nc6 {[%emt 0:00:28]} 26. Bf1 {[%emt 0:00:54]} Qxc2 {[%emt 0:04:31]} 27. Bxa6 {[%emt 0:00:21]} bxa6 {[%emt 0:00:44]} 28. Rhc1 {[%emt 0:01:08]} Qa4 {[%emt 0:00:10]} 29. Qd6 {[%emt 0:00:34]} Na5 {[%emt 0:00:36]} 30. Rc7 {[%emt 0:02:04]} Nb3+ {[%emt 0:00:45]} 31. Ka2 {[%emt 0:00:05]} Nd2 {[%emt 0:01:03] [#]} 32. b3 $2 {[%emt 0:01:19]} (32. h6 $1 {[%mdl 512]} Qb3+ 33. Ka1) 32... Qb5 {[%emt 0:03:37]} 33. g6 {[%emt 0:01:35]} Qb8 {[%emt 0:02:02]} 34. Rb2 {[%emt 0:02:28]} Nxe4 {[%emt 0:00:20]} 35. Qc6 {[%emt 0:02:13]} Nc3+ {[%emt 0:01:06]} 36. Ka1 {[%emt 0:00:04]} hxg6 {[%emt 0:04:17]} 37. hxg6 {[%emt 0:00:07]} Nd5 {[%emt 0:00:05]} 38. gxf7+ {[%emt 0:00:16]} Kh7 {[%emt 0:00:33]} 39. Rb7 {[%emt 0:02:06]} Qe5 {[%emt 0:00:20]} 40. Qc2+ {[%emt 0:00:49]} g6 {[%emt 0:00:22]} 41. Qe2 {[%emt 0:09:44]} Qf5 {[%emt 0:05:12]} 42. Rb1 $19 {[%emt 0:02:13]} (42. Qxa6 Qh3 $14) (42. Qd2 $16) 42... Qxb1+ {[%emt 0:00:32]} 0-1

[Event "Haarlemse Meesters-IM 2018"]
[Site "Haarlem"]
[Date "2018.10.25"]
[Round "6"]
[White "Van Kerkhof, David"]
[Black "Daeschler, Florian"]
[Result "1-0"]
[ECO "C34"]
[WhiteElo "2371"]
[BlackElo "2254"]
[Annotator "NA"]
[PlyCount "95"]
[EventDate "2018.10.17"]
[EventType "tourn"]
[EventCountry "NED"]
[SourceTitle "playchess.com"]
[Source "ChessBase"]
[SourceQuality "1"]
[TimeControl "40/5400+30:1800+30"]

{[%evp 9,95,-50,-48,-70,-108,-75,-105,-104,-90,-121,-95,-114,-103,-118,-124,-164,-132,-190,-93,-65,-66,-82,-123,-122,-135,-123,-114,-133,32767,32767,32767,32767,32767,32767,32767,32767,32767,15,26,18,54,32767,32767,97,32767,103,127,127,125,126,115,145,166,171,32767,32767,162,164,157,97,260,32767,32767,32767,32767,32767,378,32767,404,452,32767,381,407,322,32767,32767,472,539,495,597,793,925,1675,7735,12838,4718,29951,5031]} 1. e4 {[%emt 0:00:00]} e5 {[%emt 0:00:00]} 2. f4 {[%emt 0:00:00]} exf4 {[%emt 0:00:00]} 3. Nf3 {[%emt 0:00:00]} Nf6 {[%emt 0:00:00]} 4. e5 {[%emt 0:00:00]} Nh5 {[%emt 0:00:00]} 5. Be2 {[%emt 0:01:20]} d6 {[%emt 0:00:19]} 6. exd6 {[%emt 0:15:56] C34: King's Gambit Accepted: 3 Nf3: 3...Nf6 and 3...d6} Bxd6 {[%emt 0:01:13] LiveBook: 3 Games} ({Much worse is} 6... Qxd6 $6 7. Nc3 $11) 7. d4 {[%emt 0:00:28]} O-O {[%emt 0:02:42]} 8. O-O {[%emt 0:08:35]} Bg4 {[%emt 0:12:39]} (8... Nf6 9. c4 c5 10. d5 Re8 11. Ne1 g5 12. Nc3 Nbd7 13. h4 h6 14. hxg5 hxg5 {1-0 (27) Grekh,A (2368)-Anwesh,U (2387) Lvov 2016}) 9. Nc3 {[%emt 0:08:15]} Nc6 $146 {[%emt 0:07:29]} ({Predecessor:} 9... Re8 10. h3 Bf5 11. g4 fxg3 12. Ng5 Nf4 13. Rxf4 Qxg5 {½-½ (30) Krajnak,J-Sturc,G (2205) Tatranska Lomnica 1997}) 10. Ne4 {[%emt 0:07:52]} Nf6 {[%emt 0:03:12]} 11. Nf2 {[%emt 0:25:38]} Bh5 {[%emt 0:00:21]} 12. c4 {[%emt 0:01:09]} Re8 {[%emt 0:04:35]} 13. d5 {[%emt 0:07:30]} Rxe2 {[%emt 0:13:29]} (13... Ne7 $142 14. Nd3 Ng6) 14. Qxe2 {[%emt 0:01:40]} Nd4 {[%emt 0:00:07]} 15. Qd3 {[%emt 0:00:13]} Nxf3+ {[%emt 0:00:04]} 16. gxf3 {[%emt 0:00:04]} Nd7 {[%emt 0:00:24]} 17. Ne4 {[%emt 0:03:15] [#]} Ne5 $1 {[%emt 0:01:34]} 18. Qc3 {[%emt 0:00:59]} Qh4 {[%emt 0:27:03]} 19. c5 {[%emt 0:01:04]} Nxf3+ {[%emt 0:01:46]} 20. Rxf3 {[%emt 0:00:27]} Qg4+ {[%emt 0:00:06]} 21. Kf1 {[%emt 0:04:30]} Qxf3+ {[%emt 0:08:28]} 22. Qxf3 {[%emt 0:00:06]} Bxf3 {[%emt 0:00:02]} 23. Ng5 {[%emt 0:00:38]} Bxd5 {[%emt 0:00:09]} 24. cxd6 {[%emt 0:00:06]} h6 {[%emt 0:00:04]} 25. Nh3 {[%emt 0:01:11]} g5 {[%emt 0:00:08]} 26. dxc7 {[%emt 0:01:57]} Rc8 {[%emt 0:00:54]} 27. Nxf4 $1 {[%emt 0:00:55]} gxf4 {[%emt 0:01:26]} 28. Bxf4 {[%emt 0:00:01]} Kh7 {[%emt 0:00:18]} 29. b3 {[%emt 0:01:11]} Kg6 {[%emt 0:00:07]} 30. Rd1 {[%emt 0:00:58]} Be6 {[%emt 0:00:08]} 31. Kf2 {[%emt 0:00:25]} h5 {[%emt 0:00:22]} 32. Bg3 {[%emt 0:00:34]} h4 {[%emt 0:01:22]} 33. Bf4 {[%emt 0:00:46]} ({Not} 33. Bxh4 Rxc7 34. Ke3 Rc2 $11) 33... Kf6 {[%emt 0:03:30]} 34. Ke3 {[%emt 0:04:34]} h3 $2 {[%emt 0:02:12]} (34... Ke7 $16 {keeps fighting.} 35. Bd6+ Kd7) 35. Rd8 {[%emt 0:00:31]} Ke7 {[%emt 0:01:04]} 36. Bd6+ {[%emt 0:00:25]} Kf6 {[%emt 0:00:09]} 37. Kd4 {[%emt 0:00:52]} Kf5 {[%emt 0:02:17]} 38. a4 {[%emt 0:02:32]} Kf6 {[%emt 0:03:30]} 39. b4 {[%emt 0:00:10]} Kf5 {[%emt 0:00:12]} 40. Ke3 {[%emt 0:01:21]} f6 {[%emt 0:01:37]} 41. Bg3 {[%emt 0:05:14]} Kg4 {[%emt 0:03:10]} 42. Ke4 {[%emt 0:04:23]} Kg5 {[%emt 0:01:24]} 43. a5 {[%emt 0:01:31]} Kg4 {[%emt 0:01:49]} 44. Kd4 {[%emt 0:07:06]} Kg5 {[%emt 0:01:19]} 45. Kc5 {[%emt 0:02:07]} f5 {[%emt 0:02:31]} 46. Kd6 {[%emt 0:00:41]} Kf6 {[%emt 0:01:09]} 47. Bf4 {[%emt 0:00:43]} (47. Be5+ $142 Kf7 48. a6 bxa6 49. Kc6 Rxc7+ 50. Kxc7 Ke7 51. Rd6 Bc4 52. Kb7) 47... Kf7 {[%emt 0:00:23]} 48. a6 $18 {[%emt 0:01:44]} 1-0

[Event "Haarlemse Meesters-IM 2018"]
[Site "Haarlem"]
[Date "2018.10.25"]
[Round "6"]
[White "Lenaerts, Lennert"]
[Black "Bosboom, Manuel"]
[Result "0-1"]
[ECO "A53"]
[WhiteElo "2362"]
[BlackElo "2404"]
[Annotator "ChessBase"]
[PlyCount "110"]
[EventDate "2018.10.17"]
[EventType "tourn"]
[EventCountry "NED"]
[SourceTitle "playchess.com"]
[Source "ChessBase"]
[SourceQuality "1"]
[TimeControl "40/5400+30:1800+30"]

1. d4 {[%emt 0:00:00]} Nf6 {[%emt 0:00:00]} 2. c4 {[%emt 0:00:00]} d6 {[%emt 0:01:05]} 3. Nc3 {[%emt 0:00:03]} Nbd7 {[%emt 0:00:06]} 4. e4 {[%emt 0:02:30]} e5 {[%emt 0:02:25]} 5. d5 {[%emt 0:02:05]} Nc5 {[%emt 0:03:09]} 6. Qc2 {[%emt 0:00:35]} a5 {[%emt 0:00:44]} 7. Nf3 {[%emt 0:03:19]} Be7 {[%emt 0:07:19]} 8. Be3 {[%emt 0:01:44]} b6 {[%emt 0:01:06]} 9. h3 {[%emt 0:00:07]} Bd7 {[%emt 0:05:06]} 10. Be2 {[%emt 0:04:52]} g6 {[%emt 0:07:28]} 11. Nd2 {[%emt 0:01:19]} h5 {[%emt 0:00:18]} 12. g3 {[%emt 0:16:42]} a4 {[%emt 0:06:11]} 13. f4 {[%emt 0:02:21]} h4 {[%emt 0:03:58]} 14. g4 {[%emt 0:05:20]} exf4 {[%emt 0:00:54]} 15. Bxf4 {[%emt 0:00:05]} Nh7 {[%emt 0:04:11]} 16. e5 {[%emt 0:01:10]} dxe5 {[%emt 0:06:10]} 17. Bxe5 {[%emt 0:00:52]} Bf6 {[%emt 0:02:25]} 18. Bxf6 {[%emt 0:08:46]} Nxf6 {[%emt 0:08:44]} 19. O-O-O {[%emt 0:04:55]} O-O {[%emt 0:04:31]} 20. Nf3 {[%emt 0:02:35]} Qe7 {[%emt 0:09:11]} 21. Rhe1 {[%emt 0:13:36]} Rfe8 {[%emt 0:01:29]} 22. Nxh4 {[%emt 0:07:22]} a3 {[%emt 0:04:46]} 23. b3 {[%emt 0:00:35]} Qe3+ {[%emt 0:04:53]} 24. Qd2 {[%emt 0:00:49]} Qxh3 {[%emt 0:01:16]} 25. Rh1 {[%emt 0:01:44]} Qe3 {[%emt 0:02:44]} 26. Rhg1 {[%emt 0:05:01]} Qxd2+ {[%emt 0:06:45]} 27. Kxd2 {[%emt 0:00:12]} Nfe4+ {[%emt 0:01:03]} 28. Nxe4 {[%emt 0:00:02]} Nxe4+ {[%emt 0:00:40]} 29. Kc2 {[%emt 0:00:10]} Kg7 {[%emt 0:00:24]} 30. Rd4 {[%emt 0:01:12]} Ng5 {[%emt 0:01:22]} 31. Kd2 {[%emt 0:01:06]} Rxe2+ {[%emt 0:02:01]} 32. Kxe2 {[%emt 0:00:05]} Re8+ {[%emt 0:00:01]} 33. Kd3 {[%emt 0:08:27]} Rh8 {[%emt 0:00:22]} 34. Rh1 {[%emt 0:00:07]} Nf3 {[%emt 0:01:16]} 35. Re4 {[%emt 0:03:53]} Nxh4 {[%emt 0:00:49]} 36. Re7 {[%emt 0:00:03]} Bxg4 {[%emt 0:00:40]} 37. Rxc7 {[%emt 0:00:05]} Bf3 {[%emt 0:00:53]} 38. Rh2 {[%emt 0:01:22]} g5 {[%emt 0:00:13]} 39. d6 {[%emt 0:00:01]} Rd8 {[%emt 0:01:43]} 40. Ke3 {[%emt 0:00:34]} Rxd6 {[%emt 0:00:53]} 41. Rxh4 {[%emt 0:30:02]} gxh4 {[%emt 0:30:08]} 42. Kxf3 {[%emt 0:00:04]} Rd2 {[%emt 0:00:00]} 43. Kg4 {[%emt 0:00:00]} Rxa2 {[%emt 0:00:00]} 44. Ra7 {[%emt 0:00:00]} Ra1 {[%emt 0:00:00]} 45. Kh3 {[%emt 0:00:00]} Kf6 {[%emt 0:00:00]} 46. Kh2 {[%emt 0:00:00]} Ke5 {[%emt 0:00:00]} 47. b4 {[%emt 0:00:00]} f5 {[%emt 0:00:00]} 48. c5 {[%emt 0:00:00]} bxc5 {[%emt 0:00:00]} 49. bxc5 {[%emt 0:00:00]} Kd5 {[%emt 0:00:00]} 50. Rf7 {[%emt 0:00:00]} a2 {[%emt 0:00:00]} 51. Rxf5+ {[%emt 0:00:00]} Ke4 {[%emt 0:00:00]} 52. Rf2 {[%emt 0:00:00]} Rh1+ {[%emt 0:00:00]} 53. Kxh1 {[%emt 0:00:00]} a1=Q+ {[%emt 0:00:00]} 54. Kh2 {[%emt 0:00:00]} Qe5+ {[%emt 0:00:00]} 55. Kg2 {[%emt 0:00:00]} Qg3+ {[%emt 0:00:00]} 0-1